bitfinex-derivatives/quotes_ETHF0:USTF0_20250626
["timestamp","ask_amount","ask_price","bid_price","bid_amount"]
[1750945183999,0.81994,2438.4,2438.2,0.82001]
[1750945184192,3.2078,2438.6,2438.3,6.41379863]
[1750945184495,0.81991,2438.5,2438.4,7.078]
[1750945184686,4.0277,2438.6,2438.4,7.078]
[1750945184889,3.2078,2438.6,2438.4,7.078]
[1750945185093,3.2078,2438.6,2438.5,0.81991]
[1750945185293,4.02767,2438.6,2438.4,7.89793]
[1750945185495,0.81991,2438.5,2438.4,7.078]
[1750945186295,4.02769,2438.6,2438.5,0.81991]
[1750945186598,4.0277,2438.6,2438.4,7.89794]
[1750945186800,4.0277,2438.6,2438.5,0.81991]
[1750945187500,3.2078,2438.6,2438.5,0.81991]
[1750945188793,3.2078,2438.6,2438.5,7.23370863]
[1750945188994,0.81977,2439.0,2438.8,0.81978]
[1750945189197,3.2078,2439.2,2438.8,6.41379863]
[1750945189492,3.2078,2439.2,2439.1,7.23350863]
[1750945190094,4.02747,2439.2,2439.1,6.41379863]
[1750945190399,3.2078,2439.2,2439.1,0.81971]
[1750945190598,3.2078,2439.2,2438.9,7.08639863]
[1750945190599,4.02747,2439.2,2439.0,0.81972]
[1750945191100,3.2078,2439.2,2438.9,7.08639863]
[1750945191396,0.81973,2439.1,2438.9,7.90615863]
[1750945191696,3.2078,2439.2,2439.1,0.81971]
[1750945192193,5.62818157,2439.7,2439.2,2.04918]
[1750945192390,3.2078,2439.7,2439.6,0.81954]
[1750945192790,0.7298,2439.8,2439.7,0.81951]
[1750945192998,0.81945,2439.9,2439.5,6.41379863]
[1750945193199,0.81943,2440.0,2439.7,0.81949]
[1750945193395,0.7298,2440.1,2439.8,6.41379863]
[1750945193702,1.54917,2440.1,2439.9,0.81941]
[1750945193895,4.02715,2440.2,2439.9,0.81944]
[1750945194096,3.2078,2440.2,2439.8,6.41379863]
[1750945194297,3.2078,2440.2,2440.1,6.41379863]
[1750945195007,3.2078,2440.2,2440.1,7.23316863]
[1750945195304,4.02714,2440.2,2440.1,13.48879863]
[1750945195800,3.2078,2440.2,2440.1,14.30816863]
[1750945195998,4.02714,2440.2,2440.1,13.48879863]
[1750945196307,4.02717,2440.2,2440.0,7.075]
[1750945196507,0.81937,2440.1,2440.0,7.075]
[1750945197201,3.2078,2440.2,2440.1,0.81937]
[1750945197403,3.2078,2440.2,2440.1,7.23316863]
[1750945198105,2.1457,2440.5,2440.1,6.41379863]
[1750945198406,0.81922,2440.6,2440.4,7.23305863]
[1750945198606,0.81922,2440.6,2440.4,14.30705863]
[1750945198810,0.81921,2440.6,2440.4,14.30704863]
[1750945199401,0.7233,2440.7,2440.4,13.48779863]
[1750945199702,2.42038157,2441.4,2440.7,2.04793]
[1750945199907,3.80328157,2441.7,2441.3,6.41379863]
[1750945200102,1.3829,2441.7,2441.3,13.48679863]
[1750945200304,3.84408157,2441.8,2441.6,7.50666635]
[1750945200305,0.7009,2441.8,2441.6,7.50666635]
[1750945200503,2.42038157,2442.1,2441.7,7.073]
[1750945200700,3.2078,2442.5,2441.7,7.073]
[1750945200701,2.42038157,2442.5,2442.0,10.71446635]
[1750945201004,2.42038157,2442.6,2442.3,3.2078]
[1750945201207,0.81862,2442.4,2442.3,7.073]
[1750945201604,3.85838157,2442.5,2441.7,3.2078]
[1750945201808,0.8189,2441.5,2441.3,47.227]
[1750945201996,3.2078,2441.7,2441.3,7.073]
[1750945202196,0.81892,2441.5,2441.3,7.073]
[1750945202407,0.81892,2441.5,2441.3,14.57966635]
[1750945202606,0.81882,2441.8,2441.3,14.57966635]
[1750945202811,2.1785,2442.2,2441.7,8.32549635]
[1750945202997,2.1785,2442.2,2441.8,7.073]
[1750945202998,3.2078,2442.1,2441.8,7.073]
[1750945203196,0.81876,2442.0,2441.8,7.073]
[1750945203402,4.02653,2442.1,2441.8,7.073]
[1750945203703,0.81874,2442.0,2441.8,7.073]
[1750945203906,0.81877,2441.9,2441.8,7.073]
[1750945204206,0.81869,2442.2,2441.8,7.073]
[1750945204409,3.23890157,2442.7,2442.1,7.50666635]
[1750945204604,0.81854,2442.6,2442.5,7.50666635]
[1750945205101,3.2078,2442.6,2442.2,8.93766635]
[1750945205304,0.81863,2442.3,2442.2,7.50666635]
[1750945205709,0.81863,2442.3,2442.2,14.57466635]
[1750945207104,0.81863,2442.3,2442.2,7.068]
[1750945207305,0.81863,2442.3,2441.5,47.9107]
[1750945207306,5.2544,2442.3,2442.0,7.068]
[1750945207502,3.38974,2442.2,2441.6,7.50666635]
[1750945207704,0.81877,2441.9,2441.8,7.068]
[1750945208803,3.2078,2442.0,2441.8,7.8868]
[1750945208999,4.02653,2442.0,2441.9,7.50666635]
[1750945209702,4.02653,2442.0,2441.9,14.57466635]
[1750945210812,0.81883,2441.7,2441.6,7.50666635]
[1750945211013,0.81883,2441.7,2441.6,14.57466635]
[1750945211310,0.81887,2441.6,2441.5,47.215]
[1750945211505,0.81887,2441.6,2441.5,54.283]
[1750945212000,0.81886,2441.7,2441.5,54.283]
[1750945212206,0.81877,2441.9,2441.6,7.50666635]
[1750945212411,0.81878,2441.9,2441.7,0.81882]
[1750945212914,0.8188,2441.8,2441.6,9.69981635]
[1750945213113,3.2078,2442.0,2441.7,0.81882]
[1750945213309,4.02655,2442.0,2441.7,0.81882]
[1750945213511,3.2078,2442.0,2441.6,8.88096635]
[1750945213811,7.068,2442.5,2441.6,8.88096635]
[1750945213812,3.2078,2442.5,2441.9,7.50666635]
[1750945214004,0.81854,2442.6,2442.3,7.50666635]
[1750945214208,0.6967,2442.7,2442.4,7.067]
[1750945214517,1.3431,2442.8,2442.5,0.81854]
[1750945214713,1.3431,2442.8,2442.6,0.81853]
[1750945214912,1.3431,2442.8,2442.4,7.067]
[1750945215116,0.81848,2442.8,2442.5,0.81855]
[1750945215417,0.81844,2442.9,2442.4,8.4413]
[1750945215615,3.9355,2443.0,2442.4,8.4413]
[1750945216116,3.9355,2443.0,2442.8,0.81846]
[1750945216313,3.9355,2443.0,2442.8,0.81845]
[1750945216314,3.2078,2443.0,2442.8,0.81845]
[1750945216513,0.81835,2443.2,2443.0,0.8184]
[1750945216818,3.2078,2443.3,2443.1,0.81836]
[1750945217121,3.2078,2443.3,2443.1,0.81835]
[1750945217420,3.2078,2443.3,2442.9,7.066]
[1750945217618,3.2078,2443.0,2442.5,3.2078]
[1750945217918,3.2078,2442.7,2442.3,7.065]
[1750945218423,3.2078,2442.7,2442.5,0.81856]
[1750945218609,4.5455,2442.7,2442.3,7.065]
[1750945218810,0.81857,2442.5,2442.3,7.88362]
[1750945219014,5.36402,2442.7,2442.5,0.81856]
[1750945219214,5.36402,2442.7,2442.3,7.065]
[1750945219215,0.81861,2442.4,2442.3,7.065]
[1750945219610,0.81861,2442.4,2442.1,0.81868]
[1750945219611,3.2078,2442.4,2442.1,0.81868]
[1750945219807,1.3377,2442.3,2442.2,0.81867]
[1750945220012,2.15633,2442.3,2442.2,7.88367]
[1750945220217,1.3377,2442.3,2442.2,7.88367]
[1750945220418,2.15633,2442.3,2442.1,0.81868]
[1750945220616,1.3377,2442.3,2441.9,3.2078]
[1750945220819,0.81873,2442.0,2441.9,3.2078]
[1750945221011,0.81879,2441.9,2441.8,0.8188]
[1750945221215,1.3377,2441.9,2441.6,7.065]
[1750945221421,0.81883,2441.7,2441.6,7.065]
[1750945221617,0.81887,2441.6,2441.5,0.8189]
[1750945221923,3.2078,2442.1,2441.4,14.57166635]
[1750945222222,4.5245,2442.1,2442.0,0.81873]
[1750945222421,0.81873,2442.0,2441.9,0.81875]
[1750945222719,0.81884,2441.7,2441.5,0.81887]
[1750945222924,1.3167,2441.9,2441.6,7.065]
[1750945223115,0.81883,2441.8,2441.6,7.88385]
[1750945223319,2.13548,2441.9,2441.7,0.81883]
[1750945223518,3.2078,2442.1,2441.7,0.81881]
[1750945223822,0.81879,2441.9,2441.7,0.81881]
[1750945224424,0.81879,2441.9,2441.6,7.065]
[1750945224425,0.8188,2441.8,2441.6,7.88385]
[1750945224926,0.81879,2441.9,2441.7,0.81883]
[1750945225127,0.8188,2441.8,2441.6,7.88385]
[1750945225329,0.81879,2441.9,2441.7,0.81883]
[1750945225516,0.81879,2441.9,2441.7,0.8188]
[1750945225517,0.81877,2441.9,2441.7,0.8188]
[1750945225920,0.81876,2442.0,2441.9,0.81877]
[1750945226121,3.2078,2442.1,2441.9,0.81875]
[1750945226326,4.02651,2442.1,2441.9,7.21003407]
[1750945226527,3.2078,2442.1,2442.0,0.81873]
[1750945226931,4.02652,2442.1,2441.9,6.39128407]
[1750945227128,0.81873,2442.0,2441.9,6.39128407]
[1750945227328,4.02652,2442.1,2441.9,7.21003407]
[1750945227721,4.02652,2442.1,2441.9,6.39128407]
[1750945227928,4.02652,2442.1,2441.9,7.21002407]
[1750945228127,3.2078,2442.1,2441.9,6.39128407]
[1750945228433,4.02651,2442.1,2441.9,13.45628407]
[1750945229129,3.2078,2442.1,2441.5,1.4596]
[1750945229432,3.2078,2442.1,2441.8,0.81879]
[1750945229623,1.4438,2442.0,2441.6,9.11214]
[1750945229928,3.2078,2442.1,2442.0,0.81873]
[1750945231428,2.1411,2442.4,2442.3,0.81863]
[1750945231627,3.2078,2442.7,2442.3,2.04659]
[1750945231824,3.2078,2442.7,2442.6,0.81853]
[1750945232020,3.2078,2442.7,2442.4,7.065]
[1750945232424,3.2078,2442.7,2442.6,0.81853]
[1750945233634,2.42038157,2443.1,2443.0,0.8184]
[1750945234524,3.23877157,2443.1,2442.9,0.81842]
[1750945234730,2.42038157,2443.1,2443.0,0.8184]
[1750945235131,2.42038157,2443.2,2442.8,7.065]
[1750945235326,3.77638157,2443.2,2443.1,0.81836]
[1750945235528,3.77638157,2443.2,2442.9,6.39128407]
[1750945235529,2.42038157,2443.2,2442.9,6.39128407]
[1750945235725,2.42038157,2443.3,2443.2,0.81833]
[1750945236035,2.42038157,2443.4,2443.3,0.8183]
[1750945236429,5.62818157,2443.6,2443.5,0.81823]
[1750945236634,3.2078,2443.6,2443.2,13.38028407]
[1750945236832,3.2078,2443.6,2443.4,0.81824]
[1750945237137,3.2078,2443.6,2443.5,0.81823]
[1750945237333,3.2078,2443.6,2443.3,2.0458]
[1750945237631,3.2078,2443.6,2443.5,0.81823]
[1750945238327,3.2078,2443.6,2443.4,0.81824]
[1750945238534,3.2078,2443.6,2443.5,7.20951407]
[1750945238837,1.356,2443.8,2443.3,0.7166]
[1750945239134,0.81832,2443.3,2443.1,4.02616]
[1750945239336,3.2078,2443.6,2443.2,6.988]
[1750945239530,3.2078,2443.3,2442.5,1.19617755]
[1750945239731,3.2078,2443.0,2442.5,7.58746162]
[1750945239935,0.8185,2442.7,2442.6,2.01469755]
[1750945240240,0.8185,2442.7,2442.6,1.19617755]
[1750945240631,1.3867,2442.9,2442.5,8.18417755]
[1750945240632,0.81853,2442.6,2442.5,8.18417755]
[1750945240933,0.81859,2442.5,2442.3,7.20990407]
[1750945241133,0.81857,2442.5,2442.4,6.988]
[1750945241334,2.04604,2443.0,2442.4,6.988]
[1750945241335,2.42038157,2443.4,2442.4,16.58708407]
[1750945241548,5.63827416,2444.8,2443.4,2.04567]
[1750945241841,5.63827416,2444.8,2444.5,7.20916407]
[1750945242042,2.8962,2444.9,2444.5,6.39128407]
[1750945242237,3.2078,2445.1,2444.8,6.39128407]
[1750945242545,7.79127416,2445.7,2445.6,0.81753]
[1750945242740,1.3867,2446.2,2445.6,17.40461407]
[1750945243042,1.3867,2446.2,2446.0,0.81738]
[1750945243337,3.2078,2446.3,2446.2,0.81733]
[1750945243936,8.2078,2446.3,2445.6,0.8175]
[1750945244147,3.2078,2445.9,2445.4,7.7313]
[1750945244339,1.3196,2445.8,2445.7,0.81749]
[1750945244534,1.3196,2445.8,2445.4,6.988]
[1750945244535,1.3196,2445.8,2445.3,3.2078]
[1750945244737,1.3196,2445.8,2445.4,0.81758]
[1750945244939,1.3196,2445.8,2445.6,0.81753]
[1750945245135,1.3196,2445.8,2445.3,3.2078]
[1750945245338,1.3196,2445.8,2445.3,4.02543]
[1750945245646,2.13709,2445.8,2445.4,0.81759]
[1750945245845,2.13709,2445.8,2444.9,0.81774]
[1750945245846,3.2078,2445.5,2444.9,0.81774]
[1750945246037,3.2078,2445.0,2444.9,0.81776]
[1750945246747,3.2078,2445.0,2444.9,7.80376]
[1750945247045,2.074,2445.4,2445.2,0.81766]
[1750945247243,2.074,2445.4,2445.1,6.986]
[1750945247541,2.074,2445.4,2445.0,0.8177]
[1750945247841,2.89161,2445.4,2445.0,0.81771]
[1750945248045,0.81765,2445.3,2444.9,4.02556]
[1750945248241,1.3318,2445.2,2445.0,6.984]
[1750945248549,0.7422,2445.4,2445.0,6.984]
[1750945248844,0.7422,2445.4,2445.3,0.81763]
[1750945249449,0.7422,2445.4,2445.2,0.81765]
[1750945249748,4.5396,2445.6,2445.3,0.81763]
[1750945250046,0.81757,2445.5,2445.2,0.81764]
[1750945250249,3.2078,2445.6,2445.1,14.46970736]
[1750945250447,1.6025,2445.7,2445.4,0.81758]
[1750945250644,0.81748,2445.8,2445.2,3.2078]
[1750945250844,0.81748,2445.8,2445.5,0.81754]
[1750945251042,3.2078,2445.9,2445.7,0.81748]
[1750945251245,0.81746,2445.8,2445.6,6.983]
[1750945251544,0.81747,2445.8,2445.4,7.48570736]
[1750945251741,3.2078,2445.6,2444.9,47.95074]
[1750945251952,3.2078,2445.1,2444.7,3.2078]
[1750945252248,3.2078,2444.8,2444.3,3.2078]
[1750945252544,1.375,2445.0,2444.5,8.30358736]
[1750945252752,0.81778,2444.9,2444.6,0.81785]
[1750945252945,1.375,2445.0,2444.7,0.81781]
[1750945253148,1.375,2445.0,2444.9,0.81776]
[1750945253548,1.375,2445.3,2444.7,6.983]
[1750945253748,1.375,2445.3,2444.8,7.48570736]
[1750945253950,1.375,2445.3,2444.8,8.87690736]
[1750945254249,4.02542,2445.4,2445.1,7.48570736]
[1750945254250,3.2078,2445.4,2445.1,7.48570736]
[1750945254450,0.7313,2445.7,2445.1,14.46870736]
[1750945254647,0.81758,2445.5,2445.1,14.46870736]
[1750945254859,2.19255,2445.6,2445.4,0.81759]
[1750945255152,3.2078,2445.5,2445.0,3.2078]
[1750945255343,0.81765,2445.3,2445.0,10.1908]
[1750945255543,1.319,2445.2,2445.1,0.81768]
[1750945255743,0.7313,2445.7,2445.0,3.2078]
[1750945255945,1.319,2445.6,2445.1,7.48570736]
[1750945256145,1.319,2445.6,2445.1,8.90000736]
[1750945256351,1.319,2445.6,2445.5,0.81756]
[1750945256555,1.319,2445.6,2445.1,10.94418736]
[1750945256556,0.7313,2445.7,2445.6,0.81753]
[1750945256752,8.58462,2446.0,2445.8,0.81746]
[1750945257058,4.5268,2445.9,2445.8,0.81746]
[1750945257246,3.2078,2445.9,2445.8,0.81746]
[1750945258356,0.81756,2445.5,2445.3,4.02542]
[1750945258657,2.2271,2445.8,2445.4,0.81757]
[1750945258850,3.2078,2445.6,2445.0,3.2078]
[1750945259049,2.27538,2445.5,2445.3,0.81762]
[1750945259250,0.81763,2445.3,2445.1,0.81768]
[1750945259452,0.81764,2445.3,2445.1,0.81768]
[1750945259655,0.8177,2445.1,2445.0,3.2078]
[1750945259861,1.4578,2445.5,2445.0,3.2078]
[1750945260363,1.58677,2445.8,2445.4,7.48570736]
[1750945260549,0.7693,2445.8,2445.4,7.48570736]
[1750945260750,0.81754,2445.6,2445.4,8.30328736]
[1750945261051,1.4578,2445.7,2445.4,7.48570736]
[1750945261248,0.7693,2445.8,2445.7,0.81749]
[1750945261660,3.2078,2446.0,2445.9,0.81743]
[1750945262146,1.3881,2446.2,2445.8,3.2078]
[1750945262352,4.0251,2446.3,2445.8,4.6583]
[1750945262353,3.2078,2446.3,2445.8,4.6583]
[1750945262554,3.2078,2446.3,2446.1,0.81735]
[1750945262756,4.02511,2446.3,2446.1,0.81735]
[1750945262955,1.3881,2446.6,2445.9,2.04358]
[1750945263250,3.2078,2446.7,2446.6,0.81719]
[1750945263449,0.707,2446.9,2446.8,0.81713]
[1750945264058,0.81717,2446.7,2446.5,3.2078]
[1750945264260,4.5519,2446.8,2446.7,0.81716]
[1750945264462,0.707,2446.9,2446.8,0.81713]
[1750945264659,8.10582199,2448.2,2446.6,7.48570736]
[1750945264660,3.2078,2447.3,2446.6,7.48570736]
[1750945264964,3.2078,2447.7,2447.1,3.2078]
[1750945265152,3.2078,2447.4,2446.8,10.69350736]
[1750945265354,0.81696,2447.3,2446.9,1.3278]
[1750945265551,0.81696,2447.3,2446.8,4.02491]
[1750945265552,3.2078,2447.1,2447.0,0.81706]
[1750945265752,2.41702426,2447.9,2446.6,7.48570736]
[1750945265753,3.2078,2447.3,2446.6,7.48570736]
[1750945265958,0.81705,2447.1,2446.6,7.48570736]
[1750945266255,0.817,2447.2,2446.6,7.48570736]
[1750945266458,0.81706,2447.0,2446.9,3.2078]
[1750945266661,1.3441,2447.2,2446.6,3.2078]
[1750945266858,0.81714,2446.8,2446.6,3.2078]
[1750945267159,1.3441,2447.2,2446.6,3.2078]
[1750945267355,3.2078,2447.4,2446.6,0.81719]
[1750945267356,5.25016,2447.4,2446.6,0.81719]
[1750945267558,3.2078,2447.0,2446.5,0.81722]
[1750945267764,0.81718,2446.7,2446.4,3.9521]
[1750945268058,0.81714,2446.8,2446.5,0.81722]
[1750945268263,3.2078,2447.0,2446.6,7.48570736]
[1750945268463,3.2078,2447.0,2446.7,0.81716]
[1750945268760,0.81697,2447.3,2447.0,0.81704]
[1750945268965,0.81697,2447.3,2446.7,3.2078]
[1750945268966,3.2078,2447.4,2447.3,0.81697]
[1750945269158,5.3471,2447.7,2447.1,3.2078]
[1750945269460,5.3471,2447.7,2446.8,3.2078]
[1750945269461,2.04242,2447.3,2446.8,3.2078]
[1750945269669,3.2078,2447.0,2446.4,3.9521]
[1750945269863,1.427,2447.2,2446.7,10.69350736]
[1750945270157,3.2078,2447.3,2446.7,7.48570736]
[1750945270360,3.2078,2447.0,2446.5,2.15011]
[1750945270561,1.319,2447.2,2446.7,3.2078]
[1750945271067,3.2078,2447.3,2446.7,12.73642736]
[1750945271361,3.2078,2447.3,2446.8,1.3555]
[1750945271561,0.81705,2447.1,2446.9,0.81708]
[1750945271758,4.5268,2447.3,2446.7,10.69350736]
[1750945271961,4.5268,2447.3,2447.1,0.81702]
[1750945272153,2.41702426,2447.5,2446.7,10.69350736]
[1750945272359,2.41702426,2447.4,2447.3,0.81697]
[1750945272560,0.81699,2447.3,2447.0,0.81704]
[1750945272758,0.81699,2447.3,2446.8,1.3555]
[1750945272759,3.2078,2447.1,2446.8,1.3555]
[1750945273058,0.81711,2446.9,2446.7,3.2078]
[1750945273257,0.81709,2447.0,2446.7,4.02496]
[1750945273561,0.81705,2447.1,2446.9,0.81708]
[1750945273765,0.81707,2447.0,2446.8,0.81711]
[1750945273964,0.81707,2447.0,2446.7,4.02495]
[1750945274161,0.8171,2446.9,2446.7,4.02495]
[1750945274360,1.319,2447.2,2446.8,0.81713]
[1750945274666,0.81713,2446.8,2446.7,3.2078]
[1750945274868,0.81713,2446.8,2446.7,0.55263276]
[1750945275068,0.81713,2446.8,2446.7,1.36980276]
[1750945275568,4.02488,2447.0,2446.8,0.81713]
[1750945275763,3.2078,2447.0,2446.6,6.36663329]
[1750945275967,0.81713,2446.8,2446.7,0.55864909]
[1750945276164,1.3867,2446.9,2446.8,0.81713]
[1750945276560,4.02489,2447.0,2446.8,0.81713]
[1750945276765,0.81719,2446.7,2446.5,0.81722]
[1750945277066,0.81727,2446.4,2446.3,6.36663329]
[1750945277268,3.2078,2446.7,2446.6,0.8172]
[1750945277568,0.81717,2446.7,2446.6,6.9252288]
[1750945277770,0.81717,2446.7,2446.6,6.36663329]
[1750945278067,6.60449,2447.1,2446.6,6.36663329]
[1750945278068,4.5619,2447.1,2446.6,6.36663329]
[1750945278565,0.81716,2446.8,2446.7,1.21029669]
[1750945278865,0.81723,2446.5,2446.4,2.02756669]
[1750945279064,0.81723,2446.5,2446.4,1.7688727]
[1750945279764,0.7258,2446.9,2446.4,1.7688727]
[1750945279967,0.8172,2446.6,2446.5,0.55857601]
[1750945280169,2.1068,2446.9,2446.5,0.55857601]
[1750945280356,0.81717,2446.7,2446.6,7.7423893]
[1750945280560,0.81717,2446.7,2446.6,0.55857601]
[1750945280971,0.81713,2446.8,2446.7,0.81715]
[1750945281265,0.747,2447.0,2446.4,1.21029669]
[1750945281266,0.81723,2446.5,2446.4,1.21029669]
[1750945281574,4.02503,2446.5,2446.4,0.55878417]
[1750945281758,4.02503,2446.5,2446.2,1.61765631]
[1750945281759,3.2078,2446.5,2446.1,1.21029669]
[1750945281964,0.8173,2446.3,2446.2,0.55887551]
[1750945282275,3.2078,2446.3,2446.2,6.9255088]
[1750945282572,4.0251,2446.3,2446.2,0.55887551]
[1750945282965,4.0251,2446.3,2446.2,1.37620551]
[1750945283166,4.0251,2446.3,2446.2,1.7691722]
[1750945283370,1.59469,2446.4,2446.2,2.5865022]
[1750945283571,1.59469,2446.4,2446.3,0.55887551]
[1750945284169,0.7774,2446.4,2446.3,1.37617551]
[1750945284673,0.7222,2446.7,2446.3,3.76667551]
[1750945284970,2.0821,2447.0,2446.5,6.36663329]
[1750945285163,3.2078,2446.9,2446.7,0.81716]
[1750945285369,4.5848,2446.9,2446.7,0.81715]
[1750945285569,4.5848,2446.9,2446.4,1.21132875]
[1750945285764,0.81723,2446.6,2446.5,0.55948914]
[1750945286082,4.02503,2446.6,2446.5,0.55948914]
[1750945286374,0.81727,2446.4,2446.3,1.21132875]
[1750945286569,0.81727,2446.4,2446.3,1.77133373]
[1750945287170,0.81727,2446.4,2446.3,0.56000498]
[1750945287472,0.81727,2446.4,2446.3,1.37730498]
[1750945287874,0.81727,2446.4,2446.3,0.56000498]
[1750945288372,0.81731,2446.3,2446.1,2.02867875]
[1750945288571,0.81733,2446.2,2446.1,1.21132875]
[1750945289178,4.02513,2446.2,2446.1,1.21132875]
[1750945290878,0.81737,2446.1,2446.0,1.21500429]
[1750945291076,2.26187,2446.1,2446.0,1.21500429]
[1750945291370,2.26187,2446.1,2446.0,1.62000572]
[1750945292171,0.8174,2446.0,2445.9,1.62000572]
[1750945292371,2.2697,2446.0,2445.9,1.62000572]
[1750945292871,0.8174,2446.0,2445.9,1.62000572]
[1750945293778,2.2697,2446.0,2445.9,2.43743572]
[1750945293975,0.8174,2446.0,2445.9,2.43659835]
[1750945294480,0.8174,2446.0,2445.9,2.44029182]
[1750945294975,0.8174,2446.0,2445.9,1.62286182]
[1750945295179,3.2078,2446.1,2445.8,2.44030182]
[1750945295180,0.81743,2445.9,2445.8,2.44030182]
[1750945295374,0.81741,2446.0,2445.8,1.62286182]
[1750945295578,4.02519,2446.1,2445.9,2.03493619]
[1750945295775,3.2078,2446.4,2446.0,8.47851619]
[1750945295976,3.2078,2446.7,2446.2,6.36663329]
[1750945296178,4.02498,2446.7,2446.5,7.18384329]
[1750945296382,0.8172,2446.6,2446.5,7.18384329]
[1750945296679,0.8172,2446.6,2446.4,0.81725]
[1750945296977,3.2078,2446.7,2446.5,7.261]
[1750945297173,5.62482426,2447.3,2446.8,0.81712]
[1750945297480,3.2078,2447.3,2446.8,0.81713]
[1750945297672,3.2078,2447.3,2446.8,8.07813]
[1750945297878,4.5243,2447.3,2446.9,7.18372329]
[1750945298082,0.81702,2447.2,2447.0,0.81706]
[1750945298374,0.81704,2447.1,2446.9,6.36663329]
[1750945298578,0.81707,2447.0,2446.9,6.36663329]
[1750945298875,4.5243,2447.3,2446.6,5.81711619]
[1750945299079,0.81713,2446.8,2446.7,1.21751619]
[1750945299283,0.8172,2446.6,2446.5,1.21751619]
[1750945299581,0.8172,2446.6,2446.0,2.43430216]
[1750945299582,0.81737,2446.1,2446.0,2.43430216]
[1750945299775,4.02517,2446.1,2446.0,2.43430216]
[1750945300467,4.02517,2446.1,2445.6,3.2078]
[1750945300468,0.8175,2445.7,2445.6,3.2560277]
[1750945300673,0.81753,2445.6,2445.5,3.2560277]
[1750945300983,0.81757,2445.5,2445.4,3.2560277]
[1750945301178,4.02537,2445.5,2445.4,3.2560277]
[1750945301983,0.8176,2445.4,2445.3,3.2560277]
[1750945302382,0.8176,2445.4,2445.2,0.81766]
[1750945303284,0.8176,2445.4,2445.1,8.07868]
[1750945303583,0.8176,2445.4,2445.1,8.6008]
[1750945303776,0.81767,2445.2,2445.1,7.261]
[1750945303976,3.2078,2445.5,2445.0,7.9784]
[1750945303977,0.8177,2445.1,2445.0,7.9784]
[1750945304176,5.25173,2445.5,2445.0,7.9784]
[1750945304386,0.81765,2445.3,2445.0,15.16276329]
[1750945304680,0.81767,2445.2,2445.0,15.69713329]
[1750945304887,3.2078,2445.5,2445.0,15.69713329]
[1750945304888,0.8177,2445.1,2445.0,15.69713329]
[1750945305084,0.8177,2445.1,2445.0,7.08403329]
[1750945305494,3.2078,2445.2,2444.7,7.18446329]
[1750945305699,0.81781,2444.8,2444.6,12.02686]
[1750945306000,0.81783,2444.7,2444.6,3.947]
[1750945306187,3.2078,2444.9,2444.5,0.7098]
[1750945306393,0.81805,2444.1,2443.9,12.0753177]
[1750945306691,3.2078,2444.6,2443.9,8.7602]
[1750945306993,1.4532,2444.5,2443.9,10.2047]
[1750945307393,3.2078,2444.3,2443.9,2.9427]
[1750945307592,0.81807,2444.0,2443.9,0.759]
[1750945307800,3.2078,2444.0,2443.6,7.262]
[1750945308203,3.2078,2443.7,2443.4,2.913]
[1750945308410,0.81823,2443.5,2443.4,1.4685]
[1750945308700,1.4532,2443.9,2442.9,7.49879956]
[1750945308701,0.81828,2443.4,2443.0,1.4445]
[1750945308902,0.81828,2443.4,2443.1,8.08136]
[1750945309092,3.2078,2443.7,2442.9,3.2078]
[1750945309292,3.2078,2443.7,2442.9,4.6523]
[1750945309593,0.81827,2443.4,2443.2,0.81832]
[1750945310105,0.81837,2443.1,2442.9,12.73372]
[1750945310290,0.81831,2443.3,2442.9,11.9153]
[1750945310892,0.81838,2443.1,2442.9,11.9153]
[1750945311100,0.81844,2442.9,2442.8,0.7141]
[1750945311291,3.2078,2443.0,2442.4,7.265]
[1750945311699,3.2078,2443.0,2442.5,4.6621]
[1750945312407,3.2078,2443.0,2442.9,0.81844]
[1750945312601,0.81831,2443.3,2442.8,3.2078]
[1750945312602,3.2078,2443.3,2442.8,3.2078]
[1750945312898,10.70659956,2442.9,2441.6,3.2078]
[1750945313092,3.2078,2442.2,2441.8,0.721]
[1750945313295,0.81873,2442.1,2441.8,0.721]
[1750945313498,0.81873,2442.1,2441.8,2.1061]
[1750945313704,3.2078,2442.2,2442.0,0.8187]
[1750945313898,3.2078,2442.5,2442.1,0.8187]
[1750945314103,0.8186,2442.4,2442.0,0.81872]
[1750945314297,4.02652,2442.1,2441.9,7.267]
[1750945314502,3.2078,2442.1,2441.8,0.721]
[1750945314805,0.81874,2442.0,2441.8,0.721]
[1750945315203,0.81877,2441.9,2441.8,0.721]
[1750945315503,3.2078,2442.1,2441.2,26.479]
[1750945315504,3.2078,2442.1,2441.4,7.267]
[1750945315805,3.2078,2441.7,2441.0,10.0408]
[1750945316003,0.81901,2441.2,2441.0,10.0408]
[1750945316296,3.2078,2441.3,2441.0,0.695]
[1750945316297,0.81904,2441.1,2441.0,0.695]
[1750945316499,3.2078,2441.3,2441.1,0.81902]
[1750945316906,4.02679,2441.3,2441.0,2.0455]
[1750945317106,0.81902,2441.2,2441.0,2.0455]
[1750945318110,3.2078,2441.3,2441.2,0.81901]
[1750945318707,3.2078,2441.3,2440.9,7.269]
[1750945318906,3.2078,2441.3,2440.9,8.08809]
[1750945319205,3.2078,2441.0,2440.6,0.81919]
[1750945319406,3.2078,2441.0,2440.5,8.005]
[1750945319600,4.02699,2440.7,2440.5,8.005]
[1750945319796,4.02699,2440.7,2440.1,47.14]
[1750945319797,0.81925,2440.5,2440.1,0.81937]
[1750945319996,3.2078,2440.7,2440.2,1.3545]
[1750945320201,0.81926,2440.5,2440.0,1.55538]
[1750945320411,0.81926,2440.5,2440.0,2.0905]